{"text_format":"3","workbook":"xlsx","n_sheets":2,"sheets":["Wydatki","Kategoria"],"not_rendered":{"defined_names":5},"read":"whole","date_system":"1900"}

{"sheet":"Wydatki","index":0,"n_rows":25,"n_cols":7,"rows_kept":25,"merged":[[0,1,0,5],[1,1,1,6]]}
[null,"BUDŻET WYDATKÓW",{"$nulls":4},{"$f":"TODAY()","v":"2018-06-19"}]
[null,"Nazwa firmy"]
[null,"Wydatek","Kategoria","Budżet","Rzeczywiste","Różnica (zł)","Różnica (%)"]
[null,"Reklama","Operacyjne",null,null,{"$f":"IFERROR(SUM(Wydatki[Budżet]-Wydatki[Rzeczywiste]), \"\")","v":0},{"$f":"IFERROR(SUM(Wydatki[Różnica (zł)]/Wydatki[Budżet]),\"\")","v":""}]
[null,"Długi","Operacyjne",null,null,{"$f":"IFERROR(SUM(Wydatki[Budżet]-Wydatki[Rzeczywiste]), \"\")","v":0},{"$f":"IFERROR(SUM(Wydatki[Różnica (zł)]/Wydatki[Budżet]),\"\")","v":""}]
[null,"Świadczenia","Operacyjne",null,null,{"$f":"IFERROR(SUM(Wydatki[Budżet]-Wydatki[Rzeczywiste]), \"\")","v":0},{"$f":"IFERROR(SUM(Wydatki[Różnica (zł)]/Wydatki[Budżet]),\"\")","v":""}]
[null,"Materiały","Operacyjne",null,null,{"$f":"IFERROR(SUM(Wydatki[Budżet]-Wydatki[Rzeczywiste]), \"\")","v":0},{"$f":"IFERROR(SUM(Wydatki[Różnica (zł)]/Wydatki[Budżet]),\"\")","v":""}]
[null,"Opłaty pocztowe","Operacyjne",null,null,{"$f":"IFERROR(SUM(Wydatki[Budżet]-Wydatki[Rzeczywiste]), \"\")","v":0},{"$f":"IFERROR(SUM(Wydatki[Różnica (zł)]/Wydatki[Budżet]),\"\")","v":""}]
[null,"Hipoteka lub czynsz","Operacyjne",null,null,{"$f":"IFERROR(SUM(Wydatki[Budżet]-Wydatki[Rzeczywiste]), \"\")","v":0},{"$f":"IFERROR(SUM(Wydatki[Różnica (zł)]/Wydatki[Budżet]),\"\")","v":""}]
[null,"Wydatki sprzedażowe","Operacyjne",null,null,{"$f":"IFERROR(SUM(Wydatki[Budżet]-Wydatki[Rzeczywiste]), \"\")","v":0},{"$f":"IFERROR(SUM(Wydatki[Różnica (zł)]/Wydatki[Budżet]),\"\")","v":""}]
[null,"Podatki","Operacyjne",null,null,{"$f":"IFERROR(SUM(Wydatki[Budżet]-Wydatki[Rzeczywiste]), \"\")","v":0},{"$f":"IFERROR(SUM(Wydatki[Różnica (zł)]/Wydatki[Budżet]),\"\")","v":""}]
[null,"Rachunki","Operacyjne",null,null,{"$f":"IFERROR(SUM(Wydatki[Budżet]-Wydatki[Rzeczywiste]), \"\")","v":0},{"$f":"IFERROR(SUM(Wydatki[Różnica (zł)]/Wydatki[Budżet]),\"\")","v":""}]
[null,"Inne","Operacyjne",null,null,{"$f":"IFERROR(SUM(Wydatki[Budżet]-Wydatki[Rzeczywiste]), \"\")","v":0},{"$f":"IFERROR(SUM(Wydatki[Różnica (zł)]/Wydatki[Budżet]),\"\")","v":""}]
[null,"Ubezpieczenie","Operacyjne",null,null,{"$f":"IFERROR(SUM(Wydatki[Budżet]-Wydatki[Rzeczywiste]), \"\")","v":0},{"$f":"IFERROR(SUM(Wydatki[Różnica (zł)]/Wydatki[Budżet]),\"\")","v":""}]
[null,"Odsetki","Operacyjne",null,null,{"$f":"IFERROR(SUM(Wydatki[Budżet]-Wydatki[Rzeczywiste]), \"\")","v":0},{"$f":"IFERROR(SUM(Wydatki[Różnica (zł)]/Wydatki[Budżet]),\"\")","v":""}]
[null,"Telefon","Operacyjne",null,null,{"$f":"IFERROR(SUM(Wydatki[Budżet]-Wydatki[Rzeczywiste]), \"\")","v":0},{"$f":"IFERROR(SUM(Wydatki[Różnica (zł)]/Wydatki[Budżet]),\"\")","v":""}]
[null,"Konserwacja i naprawy","Operacyjne",null,null,{"$f":"IFERROR(SUM(Wydatki[Budżet]-Wydatki[Rzeczywiste]), \"\")","v":0},{"$f":"IFERROR(SUM(Wydatki[Różnica (zł)]/Wydatki[Budżet]),\"\")","v":""}]
[null,"Opłaty prawne","Operacyjne",null,null,{"$f":"IFERROR(SUM(Wydatki[Budżet]-Wydatki[Rzeczywiste]), \"\")","v":0},{"$f":"IFERROR(SUM(Wydatki[Różnica (zł)]/Wydatki[Budżet]),\"\")","v":""}]
[null,"Amortyzacja","Operacyjne",null,null,{"$f":"IFERROR(SUM(Wydatki[Budżet]-Wydatki[Rzeczywiste]), \"\")","v":0},{"$f":"IFERROR(SUM(Wydatki[Różnica (zł)]/Wydatki[Budżet]),\"\")","v":""}]
[null,"Wysyłka","Operacyjne",null,null,{"$f":"IFERROR(SUM(Wydatki[Budżet]-Wydatki[Rzeczywiste]), \"\")","v":0},{"$f":"IFERROR(SUM(Wydatki[Różnica (zł)]/Wydatki[Budżet]),\"\")","v":""}]
[null,"Magazyn","Operacyjne",null,null,{"$f":"IFERROR(SUM(Wydatki[Budżet]-Wydatki[Rzeczywiste]), \"\")","v":0},{"$f":"IFERROR(SUM(Wydatki[Różnica (zł)]/Wydatki[Budżet]),\"\")","v":""}]
[null,"Sklep","Osobiste",null,null,{"$f":"IFERROR(SUM(Wydatki[Budżet]-Wydatki[Rzeczywiste]), \"\")","v":0},{"$f":"IFERROR(SUM(Wydatki[Różnica (zł)]/Wydatki[Budżet]),\"\")","v":""}]
[null,"Sprzedawcy","Osobiste",null,null,{"$f":"IFERROR(SUM(Wydatki[Budżet]-Wydatki[Rzeczywiste]), \"\")","v":0},{"$f":"IFERROR(SUM(Wydatki[Różnica (zł)]/Wydatki[Budżet]),\"\")","v":""}]
[null,"Inne","Osobiste",null,null,{"$f":"IFERROR(SUM(Wydatki[Budżet]-Wydatki[Rzeczywiste]), \"\")","v":0},{"$f":"IFERROR(SUM(Wydatki[Różnica (zł)]/Wydatki[Budżet]),\"\")","v":""}]
[null,"Suma wydatków",null,{"$f":"IFERROR(SUM(Wydatki[Budżet]), \"\")","v":0},{"$f":"IFERROR(SUM(Wydatki[Rzeczywiste]), \"\")","v":0},{"$f":"IFERROR(SUM(Wydatki[Różnica (zł)]), \"\")","v":0},{"$f":"IFERROR(SUM(Wydatki[[#Totals],[Różnica (zł)]]/Wydatki[[#Totals],[Budżet]]),\"\")","v":""}]

{"sheet":"Kategoria","index":1,"n_rows":4,"n_cols":2,"rows_kept":4}
[null,"Wyszukiwanie kategorii"]
[null,"Kategoria"]
[null,"Operacyjne"]
[null,"Osobiste"]